[Event "Titled Tuesday Blitz December 13 Late 2022"]
[White "Miller, Luke C"]
[Black "Novikova, Galina"]
[WhiteFideId "2096935"]
[BlackFideId "4157095"]
[WhiteElo "2487"]
[BlackElo "1953"]
[Result "0-1"]
[Round "08"]
[TimeControl "180+1"]
[Date "2022.12.14"]
[WhiteClock "0:00:10"]
[BlackClock "0:00:22"]

1. e4 {[%clk 0:03:00]}  e6 {[%clk 0:03:00]} 2. d4 {[%clk 0:02:59]}  d5 {[%clk 0:03:01]} 3. Nc3 {[%clk 0:02:58]}  Bb4 {[%clk 0:03:01]} 4. e5 {[%clk 0:02:58]}  Ne7 {[%clk 0:03:00]} 5. a3 {[%clk 0:02:50]}  Bxc3+ {[%clk 0:03:00]} 6. bxc3 {[%clk 0:02:51]}  c5 {[%clk 0:03:00]} 7. Qg4 {[%clk 0:02:51]}  Kf8 {[%clk 0:03:01]} 8. Nf3 {[%clk 0:02:49]}  Qa5 {[%clk 0:03:00]} 9. Bd2 {[%clk 0:02:49]}  Qa4 {[%clk 0:03:01]} 10. Ra2 {[%clk 0:02:44]}  Nbc6 {[%clk 0:03:01]} 11. Bd3 {[%clk 0:02:37]}  b6 {[%clk 0:03:01]} 12. h4 {[%clk 0:02:30]}  Ba6 {[%clk 0:03:00]} 13. h5 {[%clk 0:02:21]}  h6 {[%clk 0:03:01]} 14. Qf4 {[%clk 0:02:07]}  Bxd3 {[%clk 0:02:50]} 15. cxd3 {[%clk 0:02:06]}  Rc8 {[%clk 0:02:51]} 16. dxc5 {[%clk 0:02:01]}  Qxf4 {[%clk 0:02:21]} 17. Bxf4 {[%clk 0:02:02]}  bxc5 {[%clk 0:02:21]} 18. Kd2 {[%clk 0:01:55]}  Na5 {[%clk 0:02:15]} 19. Rb2 {[%clk 0:01:41]}  c4 {[%clk 0:02:12]} 20. Nd4 {[%clk 0:01:30]}  Kg8 {[%clk 0:02:01]} 21. Nb5 {[%clk 0:01:24]}  Kh7 {[%clk 0:01:42]} 22. Nd6 {[%clk 0:01:09]}  Rc6 {[%clk 0:01:34]} 23. Nxf7 {[%clk 0:01:03]}  Rf8 {[%clk 0:01:34]} 24. Nd6 {[%clk 0:00:59]}  Rxf4 {[%clk 0:01:33]} 25. Rb8 {[%clk 0:00:57]}  Rxf2+ {[%clk 0:01:17]} 26. Ke3 {[%clk 0:00:56]}  Rxg2 {[%clk 0:01:14]} 27. Rf1 {[%clk 0:00:47]}  Rg3+ {[%clk 0:00:58]} 28. Kd2 {[%clk 0:00:38]}  Nb3+ {[%clk 0:00:44]} 29. Kc2 {[%clk 0:00:38]}  Rg2+ {[%clk 0:00:44]} 30. Kd1 {[%clk 0:00:33]}  Nf5 {[%clk 0:00:24]} 31. Nf7 {[%clk 0:00:15]}  Ne3+ {[%clk 0:00:23]} 32. Ke1 {[%clk 0:00:11]}  Nc2+ {[%clk 0:00:21]} 33. Kd1 {[%clk 0:00:10]}  Rd2# {[%clk 0:00:22]} 0-1


[Site "https://www.chess.com"]

[Event "Titled Tuesday Blitz December 13 Late 2022"]
[White "Pham, Khoi"]
[Black "Donskov, Anatoly"]
[WhiteFideId "1054988"]
[BlackFideId "24143413"]
[WhiteElo "2514"]
[BlackElo "2219"]
[Result "0-1"]
[Round "08"]
[TimeControl "180+1"]
[Date "2022.12.14"]
[WhiteClock "0:00:04"]
[BlackClock "0:00:09"]

1. e4 {[%clk 0:03:00]}  c5 {[%clk 0:02:59]} 2. Nf3 {[%clk 0:02:59]}  Nc6 {[%clk 0:02:59]} 3. d4 {[%clk 0:02:57]}  cxd4 {[%clk 0:02:59]} 4. Nxd4 {[%clk 0:02:56]}  Qb6 {[%clk 0:03:00]} 5. Nb3 {[%clk 0:02:54]}  e6 {[%clk 0:03:00]} 6. Nc3 {[%clk 0:02:50]}  Nf6 {[%clk 0:03:00]} 7. Bd3 {[%clk 0:02:49]}  Bb4 {[%clk 0:03:00]} 8. O-O {[%clk 0:02:45]}  O-O {[%clk 0:02:53]} 9. Bf4 {[%clk 0:02:38]}  Bxc3 {[%clk 0:02:50]} 10. bxc3 {[%clk 0:02:38]}  d5 {[%clk 0:02:50]} 11. e5 {[%clk 0:02:35]}  Nd7 {[%clk 0:02:50]} 12. Re1 {[%clk 0:02:34]}  Qd8 {[%clk 0:02:40]} 13. Re3 {[%clk 0:02:30]}  g6 {[%clk 0:02:36]} 14. Bh6 {[%clk 0:02:27]}  Ndxe5 {[%clk 0:02:35]} 15. Bxf8 {[%clk 0:02:25]}  Qxf8 {[%clk 0:02:35]} 16. Qe2 {[%clk 0:02:21]}  Qd6 {[%clk 0:02:28]} 17. Nd4 {[%clk 0:02:17]}  a6 {[%clk 0:02:09]} 18. Rb1 {[%clk 0:02:08]}  Nxd4 {[%clk 0:02:04]} 19. cxd4 {[%clk 0:02:06]}  Nc6 {[%clk 0:02:05]} 20. c3 {[%clk 0:02:05]}  b5 {[%clk 0:02:05]} 21. Qc2 {[%clk 0:01:57]}  Bd7 {[%clk 0:02:04]} 22. a4 {[%clk 0:01:52]}  Rc8 {[%clk 0:01:57]} 23. Qa2 {[%clk 0:01:31]}  Na7 {[%clk 0:01:23]} 24. axb5 {[%clk 0:01:26]}  Bxb5 {[%clk 0:01:24]} 25. Bxb5 {[%clk 0:01:11]}  Nxb5 {[%clk 0:01:25]} 26. Qa5 {[%clk 0:01:10]}  Qc6 {[%clk 0:01:11]} 27. h3 {[%clk 0:00:38]}  Nxc3 {[%clk 0:01:05]} 28. Rb6 {[%clk 0:00:31]}  Qc4 {[%clk 0:01:06]} 29. Qxa6 {[%clk 0:00:20]}  Qxa6 {[%clk 0:01:06]} 30. Rxa6 {[%clk 0:00:21]}  Nb5 {[%clk 0:01:06]} 31. Rd3 {[%clk 0:00:19]}  Rc4 {[%clk 0:00:44]} 32. Rb3 {[%clk 0:00:18]}  Nxd4 {[%clk 0:00:37]} 33. Rb7 {[%clk 0:00:18]}  Rc8 {[%clk 0:00:33]} 34. Raa7 {[%clk 0:00:17]}  Rf8 {[%clk 0:00:34]} 35. f3 {[%clk 0:00:16]}  Nf5 {[%clk 0:00:33]} 36. Kf2 {[%clk 0:00:16]}  h6 {[%clk 0:00:32]} 37. g4 {[%clk 0:00:15]}  Nd6 {[%clk 0:00:32]} 38. Rd7 {[%clk 0:00:14]}  Nc4 {[%clk 0:00:32]} 39. h4 {[%clk 0:00:14]}  Kg7 {[%clk 0:00:31]} 40. h5 {[%clk 0:00:13]}  g5 {[%clk 0:00:30]} 41. Re7 {[%clk 0:00:12]}  Kf6 {[%clk 0:00:30]} 42. Reb7 {[%clk 0:00:11]}  Ne5 {[%clk 0:00:31]} 43. Kg3 {[%clk 0:00:11]}  Rc8 {[%clk 0:00:30]} 44. Ra3 {[%clk 0:00:08]}  Rc4 {[%clk 0:00:30]} 45. Rab3 {[%clk 0:00:08]}  Rf4 {[%clk 0:00:30]} 46. Rb8 {[%clk 0:00:08]}  d4 {[%clk 0:00:27]} 47. Rd8 {[%clk 0:00:07]}  d3 {[%clk 0:00:27]} 48. Rdxd3 {[%clk 0:00:07]}  Nxd3 {[%clk 0:00:27]} 49. Rxd3 {[%clk 0:00:08]}  Rb4 {[%clk 0:00:25]} 50. Ra3 {[%clk 0:00:08]}  Kg7 {[%clk 0:00:24]} 51. Rc3 {[%clk 0:00:08]}  Rb8 {[%clk 0:00:24]} 52. Ra3 {[%clk 0:00:09]}  Re8 {[%clk 0:00:25]} 53. Ra7 {[%clk 0:00:09]}  Kf6 {[%clk 0:00:24]} 54. Ra5 {[%clk 0:00:09]}  e5 {[%clk 0:00:23]} 55. Ra6+ {[%clk 0:00:09]}  Re6 {[%clk 0:00:24]} 56. Ra8 {[%clk 0:00:09]}  e4 {[%clk 0:00:23]} 57. fxe4 {[%clk 0:00:08]}  Rxe4 {[%clk 0:00:24]} 58. Rh8 {[%clk 0:00:07]}  Kg7 {[%clk 0:00:23]} 59. Ra8 {[%clk 0:00:08]}  Re3+ {[%clk 0:00:24]} 60. Kg2 {[%clk 0:00:07]}  Rb3 {[%clk 0:00:25]} 61. Ra6 {[%clk 0:00:06]}  f6 {[%clk 0:00:23]} 62. Ra7+ {[%clk 0:00:06]}  Kg8 {[%clk 0:00:23]} 63. Ra8+ {[%clk 0:00:06]}  Kf7 {[%clk 0:00:23]} 64. Ra7+ {[%clk 0:00:07]}  Ke6 {[%clk 0:00:22]} 65. Rh7 {[%clk 0:00:07]}  Rb2+ {[%clk 0:00:13]} 66. Kg3 {[%clk 0:00:07]}  Rb3+ {[%clk 0:00:13]} 67. Kf2 {[%clk 0:00:08]}  Rb4 {[%clk 0:00:10]} 68. Rxh6 {[%clk 0:00:07]}  Rxg4 {[%clk 0:00:10]} 69. Rg6 {[%clk 0:00:07]}  Rh4 {[%clk 0:00:10]} 70. h6 {[%clk 0:00:07]}  Kf5 {[%clk 0:00:10]} 71. Rg8 {[%clk 0:00:04]}  Rxh6 {[%clk 0:00:10]} 72. Ra8 {[%clk 0:00:04]}  Rh3 {[%clk 0:00:10]} 73. Kg2 {[%clk 0:00:04]}  Rb3 {[%clk 0:00:10]} 74. Ra5+ {[%clk 0:00:04]}  Kg4 {[%clk 0:00:10]} 75. Ra4+ {[%clk 0:00:04]}  Kh5 {[%clk 0:00:09]} 76. Ra8 {[%clk 0:00:04]}  f5 {[%clk 0:00:10]} 77. Rh8+ {[%clk 0:00:04]}  Kg4 {[%clk 0:00:10]} 78. Rc8 {[%clk 0:00:04]}  Rb2+ {[%clk 0:00:10]} 79. Kh1 {[%clk 0:00:04]}  f4 {[%clk 0:00:10]} 80. Rc1 {[%clk 0:00:04]}  Kh3 {[%clk 0:00:10]} 81. Rg1 {[%clk 0:00:04]}  Rh2# {[%clk 0:00:09]} 0-1


[Site "https://www.chess.com"]

[Event "Titled Tuesday Blitz December 13 Late 2022"]
[White "Rian, Kapriaga"]
[Black "Przybylski, Wojciech"]
[WhiteFideId "7103263"]
[BlackFideId "1117599"]
[WhiteElo "2299"]
[BlackElo "2217"]
[Result "0-1"]
[Round "08"]
[TimeControl "180+1"]
[Date "2022.12.14"]
[WhiteClock "0:00:01"]
[BlackClock "0:01:08"]

1. d4 {[%clk 0:03:00]}  Nf6 {[%clk 0:02:59]} 2. Nf3 {[%clk 0:03:01]}  e6 {[%clk 0:02:59]} 3. Bf4 {[%clk 0:03:00]}  b6 {[%clk 0:02:59]} 4. e3 {[%clk 0:02:59]}  Bb7 {[%clk 0:03:00]} 5. Be2 {[%clk 0:02:57]}  Be7 {[%clk 0:03:01]} 6. h3 {[%clk 0:02:57]}  O-O {[%clk 0:03:02]} 7. O-O {[%clk 0:02:56]}  d6 {[%clk 0:03:03]} 8. Nbd2 {[%clk 0:02:55]}  Nbd7 {[%clk 0:03:03]} 9. Bh2 {[%clk 0:02:54]}  Re8 {[%clk 0:03:03]} 10. a4 {[%clk 0:02:48]}  a6 {[%clk 0:03:01]} 11. c3 {[%clk 0:02:47]}  Bf8 {[%clk 0:03:00]} 12. b4 {[%clk 0:02:41]}  Ne4 {[%clk 0:02:59]} 13. Nxe4 {[%clk 0:02:39]}  Bxe4 {[%clk 0:03:00]} 14. Nd2 {[%clk 0:02:37]}  Bg6 {[%clk 0:02:56]} 15. Bh5 {[%clk 0:02:28]}  d5 {[%clk 0:02:47]} 16. Bxg6 {[%clk 0:02:25]}  hxg6 {[%clk 0:02:46]} 17. a5 {[%clk 0:02:21]}  Bd6 {[%clk 0:02:42]} 18. e4 {[%clk 0:02:10]}  Bxh2+ {[%clk 0:02:33]} 19. Kxh2 {[%clk 0:02:09]}  e5 {[%clk 0:02:31]} 20. Re1 {[%clk 0:01:48]}  exd4 {[%clk 0:02:28]} 21. cxd4 {[%clk 0:01:46]}  dxe4 {[%clk 0:02:28]} 22. Nxe4 {[%clk 0:01:43]}  Nf6 {[%clk 0:02:24]} 23. Nxf6+ {[%clk 0:01:30]}  Qxf6 {[%clk 0:02:25]} 24. Rxe8+ {[%clk 0:01:25]}  Rxe8 {[%clk 0:02:26]} 25. axb6 {[%clk 0:01:24]}  Qxb6 {[%clk 0:02:26]} 26. Qd2 {[%clk 0:01:06]}  Rd8 {[%clk 0:02:24]} 27. Rd1 {[%clk 0:01:04]}  Rd5 {[%clk 0:02:23]} 28. Kg1 {[%clk 0:01:02]}  Qd6 {[%clk 0:02:15]} 29. Qc3 {[%clk 0:00:58]}  Qd7 {[%clk 0:02:11]} 30. Qc4 {[%clk 0:00:51]}  Rg5 {[%clk 0:02:06]} 31. Rd3 {[%clk 0:00:41]}  Qd5 {[%clk 0:01:41]} 32. Qxd5 {[%clk 0:00:32]}  Rxd5 {[%clk 0:01:42]} 33. Ra3 {[%clk 0:00:13]}  Rxd4 {[%clk 0:01:42]} 34. Rxa6 {[%clk 0:00:12]}  Rxb4 {[%clk 0:01:41]} 35. Ra8+ {[%clk 0:00:10]}  Kh7 {[%clk 0:01:40]} 36. Rc8 {[%clk 0:00:09]}  Rc4 {[%clk 0:01:40]} 37. g3 {[%clk 0:00:09]}  g5 {[%clk 0:01:40]} 38. Kg2 {[%clk 0:00:09]}  Kg6 {[%clk 0:01:40]} 39. Kf3 {[%clk 0:00:09]}  Kf6 {[%clk 0:01:39]} 40. Kg2 {[%clk 0:00:08]}  Ke7 {[%clk 0:01:38]} 41. Kf3 {[%clk 0:00:08]}  g6 {[%clk 0:01:38]} 42. Kg2 {[%clk 0:00:07]}  Rc3 {[%clk 0:01:36]} 43. Kf1 {[%clk 0:00:07]}  Kd7 {[%clk 0:01:36]} 44. Rf8 {[%clk 0:00:06]}  Ke6 {[%clk 0:01:36]} 45. Rc8 {[%clk 0:00:06]}  Rc2 {[%clk 0:01:26]} 46. Kg2 {[%clk 0:00:05]}  Ke5 {[%clk 0:01:20]} 47. Kf3 {[%clk 0:00:04]}  f5 {[%clk 0:01:19]} 48. Kg2 {[%clk 0:00:04]}  c6 {[%clk 0:01:14]} 49. Re8+ {[%clk 0:00:03]}  Kf6 {[%clk 0:01:11]} 50. Rc8 {[%clk 0:00:02]}  Ke6 {[%clk 0:01:11]} 51. Re8+ {[%clk 0:00:02]}  Kf7 {[%clk 0:01:11]} 52. Rc8 {[%clk 0:00:02]}  Ke7 {[%clk 0:01:10]} 53. Rg8 {[%clk 0:00:01]}  Kf6 {[%clk 0:01:10]} 54. Rc8 {[%clk 0:00:01]}  Rc3 {[%clk 0:01:08]} 0-1


[Site "https://www.chess.com"]

[Event "Titled Tuesday Blitz December 13 Late 2022"]
[White "Rodriguez Santiago, Jaime"]
[Black "Hoffmann, Asa"]
[WhiteFideId "3100898"]
[BlackFideId "2001470"]
[WhiteElo "2025"]
[BlackElo "2117"]
[Result "1-0"]
[Round "08"]
[TimeControl "180+1"]
[Date "2022.12.14"]
[WhiteClock "0:00:32"]
[BlackClock "0:01:08"]

1. c4 {[%clk 0:03:00]}  Nf6 {[%clk 0:02:55]} 2. Nc3 {[%clk 0:03:00]}  d6 {[%clk 0:02:54]} 3. g3 {[%clk 0:03:00]}  c6 {[%clk 0:02:54]} 4. Bg2 {[%clk 0:03:00]}  e5 {[%clk 0:02:54]} 5. e4 {[%clk 0:03:00]}  Be6 {[%clk 0:02:53]} 6. d3 {[%clk 0:02:59]}  d5 {[%clk 0:02:53]} 7. exd5 {[%clk 0:02:46]}  cxd5 {[%clk 0:02:53]} 8. Qa4+ {[%clk 0:02:38]}  Nc6 {[%clk 0:02:51]} 9. Nf3 {[%clk 0:02:20]}  Bd6 {[%clk 0:02:41]} 10. Bg5 {[%clk 0:02:04]}  d4 {[%clk 0:02:32]} 11. Nxe5 {[%clk 0:01:52]}  dxc3 {[%clk 0:02:26]} 12. Nxc6 {[%clk 0:01:40]}  bxc6 {[%clk 0:02:23]} 13. Qxc6+ {[%clk 0:01:34]}  Kf8 {[%clk 0:02:21]} 14. Qxa8 {[%clk 0:01:26]}  Qxa8 {[%clk 0:02:20]} 15. Bxa8 {[%clk 0:01:26]}  cxb2 {[%clk 0:02:20]} 16. Rb1 {[%clk 0:01:24]}  Bb4+ {[%clk 0:02:19]} 17. Kd1 {[%clk 0:01:23]}  Bc3 {[%clk 0:02:18]} 18. Kc2 {[%clk 0:01:12]}  Be5 {[%clk 0:02:15]} 19. Rhe1 {[%clk 0:01:07]}  Bd4 {[%clk 0:02:09]} 20. Be3 {[%clk 0:01:06]}  Bxe3 {[%clk 0:02:05]} 21. fxe3 {[%clk 0:01:06]}  Ke7 {[%clk 0:02:04]} 22. Bf3 {[%clk 0:01:06]}  Bf5 {[%clk 0:01:59]} 23. Rxb2 {[%clk 0:01:04]}  Rd8 {[%clk 0:01:58]} 24. e4 {[%clk 0:01:03]}  Be6 {[%clk 0:01:55]} 25. Kc3 {[%clk 0:01:02]}  Nd7 {[%clk 0:01:54]} 26. Rb7 {[%clk 0:01:02]}  Kf8 {[%clk 0:01:53]} 27. d4 {[%clk 0:01:01]}  Rc8 {[%clk 0:01:51]} 28. c5 {[%clk 0:00:59]}  f5 {[%clk 0:01:29]} 29. e5 {[%clk 0:00:51]}  g5 {[%clk 0:01:23]} 30. c6 {[%clk 0:00:49]}  Nb6 {[%clk 0:01:21]} 31. Rxa7 {[%clk 0:00:46]}  Bd5 {[%clk 0:01:19]} 32. Bxd5 {[%clk 0:00:42]}  Nxd5+ {[%clk 0:01:18]} 33. Kc4 {[%clk 0:00:41]}  Nb6+ {[%clk 0:01:16]} 34. Kb5 {[%clk 0:00:41]}  Nd5 {[%clk 0:01:15]} 35. Kc5 {[%clk 0:00:40]}  Nc3 {[%clk 0:01:12]} 36. d5 {[%clk 0:00:37]}  f4 {[%clk 0:01:11]} 37. d6 {[%clk 0:00:36]}  f3 {[%clk 0:01:09]} 38. d7 {[%clk 0:00:33]}  Rd8 {[%clk 0:01:08]} 39. c7 {[%clk 0:00:32]} 1-0


[Site "https://www.chess.com"]

[Event "Titled Tuesday Blitz December 13 Late 2022"]
[White "Rosenberg, Evan S"]
[Black "Omelja, Artem"]
[WhiteFideId "2019299"]
[BlackFideId "14119846"]
[WhiteElo "2431"]
[BlackElo "2404"]
[Result "0-1"]
[Round "08"]
[TimeControl "180+1"]
[Date "2022.12.14"]
[WhiteClock "0:00:07"]
[BlackClock "0:00:13"]

1. d4 {[%clk 0:03:00]}  h5 {[%clk 0:03:00]} 2. e4 {[%clk 0:02:58]}  d6 {[%clk 0:03:01]} 3. Nc3 {[%clk 0:02:56]}  h4 {[%clk 0:02:58]} 4. h3 {[%clk 0:02:53]}  e5 {[%clk 0:02:55]} 5. dxe5 {[%clk 0:02:52]}  dxe5 {[%clk 0:02:56]} 6. Qxd8+ {[%clk 0:02:52]}  Kxd8 {[%clk 0:02:57]} 7. Bc4 {[%clk 0:02:52]}  Be6 {[%clk 0:02:53]} 8. Bxe6 {[%clk 0:02:52]}  fxe6 {[%clk 0:02:54]} 9. Bg5+ {[%clk 0:02:48]}  Be7 {[%clk 0:02:49]} 10. Nf3 {[%clk 0:02:48]}  Nc6 {[%clk 0:02:44]} 11. O-O-O+ {[%clk 0:02:47]}  Kc8 {[%clk 0:02:41]} 12. Bxe7 {[%clk 0:02:20]}  Ngxe7 {[%clk 0:02:38]} 13. Ng5 {[%clk 0:02:20]}  Nd4 {[%clk 0:02:32]} 14. Nf7 {[%clk 0:02:16]}  Rh5 {[%clk 0:02:29]} 15. Nxe5 {[%clk 0:02:15]}  Rxe5 {[%clk 0:02:18]} 16. Rxd4 {[%clk 0:02:15]}  Nc6 {[%clk 0:02:00]} 17. Rd3 {[%clk 0:02:11]}  Rg5 {[%clk 0:01:51]} 18. g3 {[%clk 0:02:00]}  hxg3 {[%clk 0:01:50]} 19. Rxg3 {[%clk 0:01:59]}  Rxg3 {[%clk 0:01:49]} 20. fxg3 {[%clk 0:01:59]}  Kd7 {[%clk 0:01:50]} 21. Rd1+ {[%clk 0:01:55]}  Ke7 {[%clk 0:01:49]} 22. Nb5 {[%clk 0:01:56]}  Rh8 {[%clk 0:01:48]} 23. h4 {[%clk 0:01:55]}  Rc8 {[%clk 0:01:46]} 24. c3 {[%clk 0:01:53]}  a6 {[%clk 0:01:38]} 25. Nd4 {[%clk 0:01:53]}  Ne5 {[%clk 0:01:37]} 26. Kc2 {[%clk 0:01:50]}  c5 {[%clk 0:01:36]} 27. Ne2 {[%clk 0:01:48]}  Rf8 {[%clk 0:01:35]} 28. Nf4 {[%clk 0:01:48]}  b5 {[%clk 0:01:22]} 29. a4 {[%clk 0:01:20]}  g5 {[%clk 0:01:19]} 30. hxg5 {[%clk 0:01:19]}  Rg8 {[%clk 0:01:19]} 31. g6 {[%clk 0:01:19]}  Nxg6 {[%clk 0:01:17]} 32. Nxg6+ {[%clk 0:01:16]}  Rxg6 {[%clk 0:01:18]} 33. axb5 {[%clk 0:01:06]}  axb5 {[%clk 0:01:18]} 34. Rd3 {[%clk 0:01:04]}  Rg4 {[%clk 0:01:12]} 35. Re3 {[%clk 0:00:59]}  Kf6 {[%clk 0:01:12]} 36. e5+ {[%clk 0:00:54]}  Kf5 {[%clk 0:01:12]} 37. Kd3 {[%clk 0:00:55]}  c4+ {[%clk 0:01:10]} 38. Ke2 {[%clk 0:00:54]}  Rg8 {[%clk 0:01:05]} 39. Kf3 {[%clk 0:00:53]}  Rd8 {[%clk 0:01:00]} 40. g4+ {[%clk 0:00:42]}  Kg5 {[%clk 0:01:00]} 41. Re2 {[%clk 0:00:29]}  Rd3+ {[%clk 0:00:49]} 42. Ke4 {[%clk 0:00:29]}  Rg3 {[%clk 0:00:35]} 43. Kd4 {[%clk 0:00:27]}  Rd3+ {[%clk 0:00:34]} 44. Kc5 {[%clk 0:00:25]}  Rd5+ {[%clk 0:00:34]} 45. Kc6 {[%clk 0:00:23]}  Kxg4 {[%clk 0:00:35]} 46. Rf2 {[%clk 0:00:14]}  Rxe5 {[%clk 0:00:35]} 47. Kd6 {[%clk 0:00:15]}  Rf5 {[%clk 0:00:32]} 48. Rg2+ {[%clk 0:00:14]}  Kf3 {[%clk 0:00:32]} 49. Rd2 {[%clk 0:00:11]}  e5 {[%clk 0:00:18]} 50. Kd5 {[%clk 0:00:10]}  e4+ {[%clk 0:00:17]} 51. Kd4 {[%clk 0:00:11]}  e3 {[%clk 0:00:17]} 52. Rh2 {[%clk 0:00:09]}  e2 {[%clk 0:00:15]} 53. Rh3+ {[%clk 0:00:08]}  Kg2 {[%clk 0:00:14]} 54. Re3 {[%clk 0:00:08]}  Kf2 {[%clk 0:00:14]} 55. Rxe2+ {[%clk 0:00:06]}  Kxe2 {[%clk 0:00:13]} 56. Ke4 {[%clk 0:00:07]}  Rf1 {[%clk 0:00:13]} 0-1


[Site "https://www.chess.com"]

[Event "Titled Tuesday Blitz December 13 Late 2022"]
[White "Rustemov, Alexander"]
[Black "Jobava, Baadur"]
[WhiteFideId "4119002"]
[BlackFideId "13601520"]
[WhiteElo "2777"]
[BlackElo "2582"]
[Result "1/2-1/2"]
[Round "08"]
[TimeControl "180+1"]
[Date "2022.12.13"]
[WhiteClock "0:00:03"]
[BlackClock "0:00:43"]

1. d4 {[%clk 0:02:58]}  Nf6 {[%clk 0:02:57]} 2. c4 {[%clk 0:02:57]}  e6 {[%clk 0:02:56]} 3. Nf3 {[%clk 0:02:58]}  Bb4+ {[%clk 0:02:56]} 4. Bd2 {[%clk 0:02:58]}  Bxd2+ {[%clk 0:02:56]} 5. Qxd2 {[%clk 0:02:57]}  O-O {[%clk 0:02:56]} 6. g3 {[%clk 0:02:57]}  b6 {[%clk 0:02:56]} 7. Bg2 {[%clk 0:02:56]}  Bb7 {[%clk 0:02:57]} 8. O-O {[%clk 0:02:57]}  c5 {[%clk 0:02:54]} 9. Nc3 {[%clk 0:02:51]}  cxd4 {[%clk 0:02:48]} 10. Qxd4 {[%clk 0:02:43]}  Nc6 {[%clk 0:02:45]} 11. Qf4 {[%clk 0:02:41]}  Qb8 {[%clk 0:02:44]} 12. Qxb8 {[%clk 0:02:31]}  Raxb8 {[%clk 0:02:44]} 13. Rfd1 {[%clk 0:02:29]}  Rfd8 {[%clk 0:02:44]} 14. Rac1 {[%clk 0:02:27]}  Kf8 {[%clk 0:02:44]} 15. Nd4 {[%clk 0:02:19]}  Ke7 {[%clk 0:02:38]} 16. Nxc6+ {[%clk 0:02:12]}  Bxc6 {[%clk 0:02:39]} 17. Bxc6 {[%clk 0:02:00]}  dxc6 {[%clk 0:02:40]} 18. Kg2 {[%clk 0:01:59]}  g5 {[%clk 0:02:34]} 19. Kf3 {[%clk 0:01:58]}  h5 {[%clk 0:02:33]} 20. Ne4 {[%clk 0:01:54]}  g4+ {[%clk 0:02:27]} 21. Kf4 {[%clk 0:01:47]}  Nd7 {[%clk 0:02:22]} 22. Rd2 {[%clk 0:01:35]}  f5 {[%clk 0:02:20]} 23. Nc3 {[%clk 0:01:23]}  e5+ {[%clk 0:02:17]} 24. Ke3 {[%clk 0:01:16]}  Nc5 {[%clk 0:02:13]} 25. Rcd1 {[%clk 0:01:15]}  Rxd2 {[%clk 0:02:11]} 26. Rxd2 {[%clk 0:01:15]}  Rf8 {[%clk 0:02:09]} 27. f3 {[%clk 0:01:10]}  Ne6 {[%clk 0:02:07]} 28. Kf2 {[%clk 0:01:04]}  Ng5 {[%clk 0:02:01]} 29. b4 {[%clk 0:00:57]}  f4 {[%clk 0:01:55]} 30. Rd3 {[%clk 0:00:51]}  Ke6 {[%clk 0:01:25]} 31. Kg2 {[%clk 0:00:51]}  Rf7 {[%clk 0:01:17]} 32. a4 {[%clk 0:00:48]}  Rd7 {[%clk 0:01:12]} 33. Rxd7 {[%clk 0:00:37]}  Kxd7 {[%clk 0:01:13]} 34. Kf2 {[%clk 0:00:25]}  Kd6 {[%clk 0:01:12]} 35. fxg4 {[%clk 0:00:13]}  hxg4 {[%clk 0:01:12]} 36. e4 {[%clk 0:00:11]}  Ne6 {[%clk 0:00:55]} 37. Kg2 {[%clk 0:00:08]}  a5 {[%clk 0:00:50]} 38. c5+ {[%clk 0:00:07]}  Kc7 {[%clk 0:00:51]} 39. cxb6+ {[%clk 0:00:05]}  Kxb6 {[%clk 0:00:52]} 40. bxa5+ {[%clk 0:00:05]}  Kxa5 {[%clk 0:00:53]} 41. gxf4 {[%clk 0:00:05]}  exf4 {[%clk 0:00:51]} 42. h3 {[%clk 0:00:05]}  g3 {[%clk 0:00:47]} 43. h4 {[%clk 0:00:05]}  Kb4 {[%clk 0:00:47]} 44. Ne2 {[%clk 0:00:05]}  c5 {[%clk 0:00:42]} 45. h5 {[%clk 0:00:05]}  c4 {[%clk 0:00:43]} 46. h6 {[%clk 0:00:06]}  Ng5 {[%clk 0:00:43]} 47. Nxf4 {[%clk 0:00:06]}  Kxa4 {[%clk 0:00:42]} 48. e5 {[%clk 0:00:06]}  c3 {[%clk 0:00:42]} 49. e6 {[%clk 0:00:06]}  c2 {[%clk 0:00:40]} 50. Ne2 {[%clk 0:00:06]}  Nxe6 {[%clk 0:00:40]} 51. h7 {[%clk 0:00:04]}  Nf4+ {[%clk 0:00:41]} 52. Nxf4 {[%clk 0:00:04]}  c1=Q {[%clk 0:00:41]} 53. h8=Q {[%clk 0:00:05]}  Qxf4 {[%clk 0:00:41]} 54. Qa8+ {[%clk 0:00:03]}  Kb4 {[%clk 0:00:40]} 55. Qb7+ {[%clk 0:00:03]}  Kc5 {[%clk 0:00:41]} 56. Qe7+ {[%clk 0:00:02]}  Kd5 {[%clk 0:00:41]} 57. Qd7+ {[%clk 0:00:02]}  Kc4 {[%clk 0:00:41]} 58. Qc6+ {[%clk 0:00:02]}  Kd3 {[%clk 0:00:41]} 59. Qf3+ {[%clk 0:00:02]}  Qxf3+ {[%clk 0:00:42]} 60. Kxf3 {[%clk 0:00:03]}  g2 {[%clk 0:00:43]} 61. Kxg2 {[%clk 0:00:03]} 1/2-1/2


[Site "https://www.chess.com"]